lending/lending_fUSD_20240124
["ID","MTS","AMOUNT","RATE_DAILY","PERIOD"]
[312642524,1706122373530,-1239.0,0.00051506,31]
[312642525,1706122373540,-604.69,0.00051506,31]
[312642526,1706122373550,-650.95,0.00051506,31]
[312642527,1706122373559,-500.0,0.00051506,31]
[312642528,1706122373569,-1539.95,0.00051506,31]
[312642529,1706122373579,-8834.98,0.00051506,31]
[312642530,1706122373588,-500.0,0.00051506,31]
[312642531,1706122373599,-500.0,0.00051506,31]
[312642532,1706122373608,-547.48,0.00051506,31]
[312642533,1706122373619,-500.0,0.00051506,31]
[312642534,1706122373628,-1282.38,0.00051506,31]
[312642535,1706122373638,-2142.95,0.00051506,7]
[312642536,1706122373648,-966.05,0.00051506,31]
[312642537,1706122373658,-747.91,0.00051506,31]
[312642538,1706122373668,-1871.41,0.00051506,31]
[312642539,1706122373678,-912.87,0.00051506,31]
[312642540,1706122373687,-1116.62,0.00051506,31]
[312642541,1706122373698,-833.57,0.00051506,31]
[312642542,1706122373708,-1268.63,0.00051506,31]
[312642543,1706122373718,-646.44,0.00051506,31]
[312642544,1706122373728,-657.31,0.00051506,31]
[312642545,1706122373738,-500.0,0.00051506,31]
[312642546,1706122373748,-500.0,0.00051506,31]
[312642547,1706122373757,-731.18,0.00051506,31]
[312642548,1706122373767,-500.0,0.00051506,31]
[312642549,1706122373777,-1207.08,0.00051506,31]
[312642550,1706122373788,-1174.69,0.00051506,31]
[312642551,1706122373798,-500.0,0.00051506,31]
[312642552,1706122373809,-2581.31,0.00051506,31]
[312642553,1706122373818,-740.71,0.00051506,31]
[312642554,1706122373828,-1329.41,0.00051506,31]
[312642555,1706122373839,-1378.41,0.00051506,31]
[312642556,1706122373849,-545.75,0.00051506,31]
[312642557,1706122373859,-950.0,0.00051506,7]
[312642558,1706122373870,-500.0,0.00051506,31]
[312642559,1706122373880,-500.0,0.00051506,31]
[312642560,1706122373891,-1309.93,0.00051506,31]
[312642561,1706122373901,-500.0,0.00051506,31]
[312642562,1706122373911,-973.63,0.00051506,31]
[312642563,1706122373922,-500.0,0.00051506,31]
[312642564,1706122373932,-500.0,0.00051506,31]
[312642565,1706122373943,-1370.14,0.00051506,31]
[312642566,1706122373953,-500.0,0.00051506,31]
[312642567,1706122373963,-500.0,0.00051506,31]
[312642568,1706122373972,-500.0,0.00051506,31]
[312642569,1706122373982,-625.5,0.00051506,31]
[312642570,1706122373998,-500.0,0.00051506,31]
[312642571,1706122374008,-561.88,0.00051506,31]
[312642572,1706122374018,-500.0,0.00051506,31]
[312642573,1706122374030,-500.0,0.00051506,31]
[312642574,1706122374039,-1086.56,0.00051506,31]
[312642575,1706122374050,-4191.4,0.00051506,31]
[312642576,1706122374060,-1202.1,0.00051506,31]
[312642577,1706122374070,-1256.89,0.00051506,31]
[312642578,1706122374080,-500.0,0.00051506,31]
[312642579,1706122374090,-712.36,0.00051506,31]
[312642580,1706122374100,-1151.56,0.00051506,31]
[312642581,1706122374110,-593.19,0.00051506,31]
[312642582,1706122374121,-500.0,0.00051506,31]
[312642583,1706122374132,-1249.41,0.00051506,31]
[312642584,1706122374142,-500.0,0.00051506,31]
[312642585,1706122374152,-500.0,0.00051506,31]
[312642586,1706122374161,-500.0,0.00051506,31]
[312642587,1706122374171,-500.0,0.00051506,31]
[312642588,1706122374181,-1307.18,0.00051506,31]
[312642589,1706122374191,-795.62,0.00051506,31]
[312642590,1706122374201,-500.0,0.00051506,31]
[312642591,1706122374211,-749.12,0.00051506,31]
[312642592,1706122374221,-500.0,0.00051506,31]
[312642593,1706122374231,-500.0,0.00051506,14]
[312642594,1706122374241,-696.33,0.00051506,31]
[312642595,1706122374251,-500.0,0.00051506,31]
[312642596,1706122374261,-1284.18,0.00051506,31]
[312642597,1706122374272,-652.98,0.00051506,31]
[312642598,1706122374488,-523.2,0.00051506,31]
[312642599,1706122374499,-981.53,0.00051506,31]
[312642600,1706122374509,-648.47,0.00051506,31]
[312642601,1706122374519,-510.01,0.00051506,31]
[312642602,1706122374528,-609.97,0.00051506,31]
[312642603,1706122374538,-668.31,0.00051506,31]
[312642604,1706122374547,-982.27,0.00051506,31]
[312642605,1706122374557,-1472.4,0.00051506,31]
[312642606,1706122374567,-500.0,0.00051506,31]
[312642607,1706122374577,-500.0,0.00051506,31]
[312642608,1706122374586,-1275.47,0.00051506,20]
[312642609,1706122374596,-975.67,0.00051506,31]
[312642610,1706122374605,-859.46,0.00051506,31]
[312642611,1706122374615,-2167.45,0.00051506,31]
[312642612,1706122374625,-500.0,0.00051506,31]
[312642613,1706122374634,-500.0,0.00051506,31]
[312642614,1706122374644,-509.55618515,0.00051506,31]
[312642615,1706122374653,-666.0,0.00051506,31]
[312642616,1706122374663,-1089.95,0.00051506,31]
[312642617,1706122374673,-641.64,0.00051506,31]
[312642618,1706122374683,-924.64,0.00051506,31]
[312642619,1706122374693,-500.0,0.00051506,31]
[312642620,1706122374703,-1430.01,0.00051506,31]
[312642621,1706122374712,-536.15,0.00051506,31]
[312642622,1706122374722,-589.35,0.00051506,31]
[312642623,1706122374732,-500.0,0.00051506,31]
[312642624,1706122374741,-1129.08,0.00051506,31]
[312642625,1706122374751,-6481.22,0.00051506,31]
[312642626,1706122374761,-1564.68,0.00051506,31]
[312642627,1706122374770,-944.64,0.00051506,31]
[312642628,1706122374779,-500.0,0.00051506,31]
[312642629,1706122374789,-430.08362007,0.00051506,31]
[312642630,1706122374799,-500.0,0.00051506,30]
[312642631,1706122374809,-460.4,0.00051506,31]
[312642632,1706122374819,-1816.2,0.00051506,31]
[312642633,1706122374828,-500.0,0.00051506,31]
[312642634,1706122374838,-887.53,0.00051506,31]
[312642635,1706122374847,-677.18,0.00051506,31]
[312642636,1706122374857,-1137.33,0.00051506,31]
[312642637,1706122374867,-1033.79,0.00051506,31]
[312642638,1706122374877,-952.51,0.00051506,31]
[312642639,1706122374887,-750.26,0.00051506,31]
[312642640,1706122374897,-500.0,0.00051506,31]
[312642641,1706122374907,-500.0,0.00051506,7]
[312642642,1706122374917,-616.97,0.00051506,31]
[312642643,1706122374927,-500.0,0.00051506,31]
[312642644,1706122374936,-1156.88,0.00051506,31]
[312642645,1706122374946,-575.07,0.00051506,31]
[312642646,1706122374956,-7701.48,0.00051506,15]
[312642647,1706122374965,-508.6,0.00051506,31]
[312642648,1706122374975,-500.0,0.00051506,31]
[312642649,1706122374984,-500.0,0.00051506,31]
[312642650,1706122374994,-571.75,0.00051506,31]
[312642651,1706122375004,-588.05,0.00051506,31]
[312642652,1706122375014,-828.94,0.00051506,31]
[312642653,1706122375023,-500.0,0.00051506,31]
[312642654,1706122375034,-500.0,0.00051506,31]
[312642655,1706122375043,-532.52,0.00051506,31]
[312642656,1706122375053,-1048.36,0.00051506,31]
[312642657,1706122375063,-732.05,0.00051506,31]
[312642658,1706122375072,-952.74,0.00051506,31]
[312642659,1706122375081,-1176.12,0.00051506,31]
[312642660,1706122375091,-516.95127211,0.00051506,31]
[312642661,1706122375100,-1417.3,0.00051506,2]
[312642662,1706122375109,-1220.83,0.00051506,31]
[312642663,1706122375118,-921.3,0.00051506,31]
[312642664,1706122375128,-897.04,0.00051506,31]
[312642665,1706122375138,-500.0,0.00051506,31]
[312642666,1706122375147,-5880.03,0.00051506,31]
[312642667,1706122375156,-1858.89,0.00051506,31]
[312642668,1706122375166,-500.0,0.00051506,31]
[312642669,1706122375175,-500.0,0.00051506,31]
[312642670,1706122375185,-550.81,0.00051506,31]
[312642671,1706122375194,-500.0,0.00051506,31]
[312642672,1706122375204,-500.0,0.00051506,31]
[312642673,1706122375213,-1157.35,0.00051506,31]
[312642674,1706122375222,-739.19,0.00051506,31]
[312642675,1706122375231,-889.14,0.00051506,31]
[312642676,1706122375241,-500.0,0.00051506,31]
[312642677,1706122375250,-1017.77,0.00051506,31]
[312642678,1706122375259,-500.0,0.00051506,31]
[312642679,1706122375269,-899.45,0.00051506,31]
[312642680,1706122375278,-1542.77,0.00051506,31]
[312642681,1706122375287,-1135.37,0.00051506,31]
[312642682,1706122375297,-502.38,0.00051506,31]
[312642683,1706122375309,-1208.25,0.00051506,31]
[312642684,1706122375319,-50000.0,0.00051536,30]
[312642685,1706122375328,-500.0,0.00051622,14]
[312642686,1706122375338,-450.0,0.00051673,5]
[312642687,1706122375348,-2013.56,0.0005168,2]
[312642688,1706122375357,-1494.0,0.0005169,2]
[312642689,1706122375366,-6259.49111943,0.00051748,31]
[312642690,1706122375376,-697.53,0.0005178,31]
[312642691,1706122375386,-632.99,0.0005178,31]
[312642692,1706122375395,-500.0,0.0005178,31]
[312642693,1706122375405,-500.0,0.0005178,31]
[312642694,1706122375415,-500.0,0.0005178,31]
[312642695,1706122375424,-500.0,0.0005178,31]
[312642696,1706122375433,-513.26,0.0005178,31]
[312642697,1706122375442,-532.8,0.0005178,31]
[312642698,1706122375451,-500.0,0.0005178,31]
[312642699,1706122375461,-500.0,0.0005178,31]
[312642700,1706122375470,-500.0,0.0005178,31]
[312642701,1706122375481,-500.0,0.0005178,31]
[312642702,1706122375490,-500.0,0.0005178,31]
[312642703,1706122375499,-500.0,0.0005178,31]
[312642704,1706122375508,-944.33,0.0005178,31]
[312642705,1706122375518,-510.31,0.0005178,31]
[312642706,1706122375527,-500.0,0.0005178,31]
[312642707,1706122375536,-500.0,0.0005178,31]
[312642708,1706122375545,-278.89085326,0.0005178,31]
[312642709,1706122375554,-500.0,0.0005178,31]
[312642710,1706122375563,-500.0,0.0005178,31]
[312642711,1706122375573,-715.29,0.0005178,31]
[312642712,1706122375582,-500.0,0.0005178,31]
[312642713,1706122375590,-500.0,0.0005178,31]
[312642714,1706122375599,-1227.94,0.0005178,31]
[312642715,1706122375610,-572.94,0.0005178,31]
[312642716,1706122375619,-518.75,0.0005178,31]
[312642717,1706122375629,-500.0,0.0005178,31]
[312642718,1706122375638,-500.0,0.0005178,31]
[312642719,1706122375647,-666.04,0.0005178,31]
[312642720,1706122375656,-500.0,0.0005178,31]
[312642721,1706122375666,-500.0,0.0005178,31]
[312642722,1706122375675,-626.84,0.0005178,31]
[312642723,1706122375685,-557.55,0.0005178,31]
[312642724,1706122375694,-500.0,0.0005178,31]
[312642725,1706122375703,-500.0,0.0005178,31]
[312642726,1706122375712,-500.0,0.0005178,31]
[312642727,1706122375721,-521.21,0.0005178,31]
[312642728,1706122375731,-500.0,0.0005178,31]
[312642729,1706122375741,-522.02,0.0005178,31]
[312642730,1706122375750,-557.31,0.0005178,31]
[312642731,1706122375759,-500.0,0.0005178,31]
[312642732,1706122375768,-500.0,0.0005178,31]
[312642733,1706122375778,-500.0,0.0005178,31]
[312642734,1706122375787,-500.0,0.0005178,31]
[312642735,1706122375797,-500.0,0.0005178,31]
[312642736,1706122375806,-500.0,0.0005178,31]
[312642737,1706122375815,-500.0,0.0005178,20]
[312642738,1706122375825,-666.6,0.0005178,31]
[312642739,1706122375834,-500.0,0.0005178,31]
[312642740,1706122375843,-504.07,0.0005178,31]
[312642741,1706122375853,-1870.62,0.0005178,2]
[312642742,1706122375862,-500.0,0.0005178,31]
[312642743,1706122375872,-500.0,0.0005178,10]
[312642744,1706122375881,-610.32,0.0005178,31]
[312642745,1706122375891,-636.71,0.0005178,31]
[312642746,1706122375900,-588.07,0.0005178,31]
[312642747,1706122375910,-516.63,0.0005178,31]
[312642748,1706122375920,-565.0,0.0005178,31]
[312642749,1706122375929,-529.34251547,0.0005178,31]
[312642750,1706122375939,-661.88,0.0005178,31]
[312642751,1706122375948,-670.77,0.0005178,31]
[312642752,1706122375957,-500.0,0.0005178,31]
[312642753,1706122375966,-500.0,0.0005178,31]
[312642754,1706122375975,-500.0,0.0005178,31]
[312642755,1706122375984,-500.0,0.0005178,31]
[312642756,1706122375993,-500.0,0.0005178,31]
[312642757,1706122376002,-500.0,0.0005178,31]
[312642758,1706122376011,-500.0,0.0005178,31]
[312642759,1706122376020,-588.69,0.0005178,31]
[312642760,1706122376031,-500.0,0.0005178,31]
[312642761,1706122376040,-500.0,0.0005178,31]
[312642762,1706122376049,-500.0,0.0005178,31]
[312642763,1706122376059,-500.0,0.0005178,31]
[312642764,1706122376068,-500.0,0.0005178,31]
[312642765,1706122376077,-500.0,0.0005178,31]
[312642766,1706122376086,-505.02,0.0005178,31]
[312642767,1706122376095,-500.0,0.0005178,31]
[312642768,1706122376107,-500.0,0.0005178,31]
[312642769,1706122376118,-500.0,0.0005178,31]
[312642770,1706122376127,-500.0,0.0005178,31]
[312642771,1706122376141,-598.88,0.0005178,31]
[312642772,1706122376160,-610.34,0.0005178,31]
[312642773,1706122376176,-500.0,0.0005178,31]
[312642774,1706122376195,-500.0,0.0005178,31]
[312642775,1706122376211,-246.61633868,0.0005178,31]
[312642776,1706122376229,-500.0,0.0005178,31]
[312642777,1706122376247,-500.0,0.0005178,31]
[312642778,1706122376265,-500.0,0.0005178,31]
[312642779,1706122376282,-500.0,0.0005178,31]
[312642780,1706122376301,-840.37,0.0005178,31]
[312642781,1706122376322,-500.0,0.0005178,31]
[312642782,1706122376340,-576.14,0.0005178,31]
[312642783,1706122376353,-500.0,0.0005178,31]
[312642784,1706122376370,-614.84,0.0005178,31]
[312642785,1706122376387,-500.0,0.0005178,31]
[312642786,1706122376406,-500.0,0.0005178,31]
[312642787,1706122376421,-500.0,0.0005178,31]
[312642788,1706122376436,-699.16,0.0005178,31]
[312642789,1706122376451,-500.0,0.0005178,31]
[312642790,1706122376466,-602.98,0.0005178,31]
[312642791,1706122376481,-500.0,0.0005178,31]
[312642792,1706122376496,-1209.78,0.0005178,31]
[312642793,1706122376511,-500.0,0.0005178,31]
[312642794,1706122376527,-570.66070029,0.0005178,31]
[312642795,1706122376541,-500.0,0.0005178,31]
[312642796,1706122376556,-526.93,0.0005178,31]
[312642797,1706122376570,-669.92,0.0005178,31]
[312642798,1706122376584,-681.96,0.0005178,31]
[312642799,1706122376599,-500.0,0.0005178,31]
[312642800,1706122376614,-1093.09,0.0005178,31]
[312642801,1706122376630,-505.89,0.0005178,31]
[312642802,1706122376645,-504.26,0.0005178,31]
[312642803,1706122376660,-576.3,0.0005178,31]
[312642804,1706122376674,-683.41,0.0005178,31]
[312642805,1706122376688,-500.0,0.0005178,31]
[312642806,1706122376703,-861.51,0.0005178,31]
[312642807,1706122376718,-1129.85,0.0005178,2]
[312642808,1706122376733,-531.92,0.0005178,31]
[312642809,1706122376750,-500.0,0.0005178,31]
[312642810,1706122376765,-500.0,0.0005178,31]
[312642811,1706122376779,-500.0,0.0005178,31]
[312642812,1706122376795,-554.22,0.0005178,31]
[312642813,1706122376810,-523.21,0.0005178,31]
[312642814,1706122376825,-500.0,0.0005178,31]
[312642815,1706122376841,-538.61,0.0005178,31]
[312642816,1706122376857,-501.22,0.0005178,31]
[312642817,1706122376873,-748.72,0.0005178,31]
[312642818,1706122376888,-909.89,0.0005178,14]
[312642819,1706122376904,-598.83,0.0005178,31]
[312642820,1706122376919,-500.0,0.0005178,31]
[312642821,1706122376935,-960.56,0.0005178,31]
[312642822,1706122376951,-830.24,0.0005178,31]
[312642823,1706122376965,-895.7,0.0005178,31]
[312642824,1706122376993,-500.0,0.0005178,31]
[312642825,1706122377022,-1002.31,0.0005178,31]
[312642826,1706122377050,-500.0,0.0005178,31]
[312642827,1706122377076,-545.66,0.0005178,31]
[312642828,1706122377104,-1055.98,0.0005178,31]
[312642829,1706122377122,-500.0,0.0005178,31]
[312642830,1706122377138,-675.47,0.0005178,31]
[312642831,1706122377153,-1008.99,0.0005178,31]
[312642832,1706122377167,-500.0,0.0005178,31]
[312642833,1706122377182,-500.0,0.0005178,31]
[312642834,1706122377198,-697.41,0.0005178,31]
[312642835,1706122377212,-737.45,0.0005178,31]
[312642836,1706122377227,-733.37,0.0005178,31]
[312642837,1706122377241,-909.31,0.0005178,31]
[312642838,1706122377256,-506.83,0.0005178,31]
[312642839,1706122377270,-874.13,0.0005178,31]
[312642840,1706122377285,-703.21,0.0005178,31]
[312642841,1706122377298,-500.0,0.0005178,31]
[312642842,1706122377315,-500.0,0.0005178,31]
[312642843,1706122377330,-968.85,0.0005178,31]
[312642844,1706122377345,-385.47664349,0.0005178,31]
[312642845,1706122377360,-1263.86,0.0005178,31]
[312642846,1706122377374,-500.0,0.0005178,31]
[312642847,1706122377390,-733.08,0.0005178,31]
[312642848,1706122377404,-570.38,0.0005178,31]
[312642849,1706122377419,-500.0,0.0005178,31]
[312642850,1706122377433,-506.74,0.0005178,31]
[312642851,1706122377448,-873.0,0.0005178,31]
[312642852,1706122377463,-500.0,0.0005178,31]
[312642853,1706122377477,-500.0,0.0005178,31]
[312642854,1706122377492,-500.0,0.0005178,31]
[312642855,1706122377507,-500.0,0.0005178,10]
[312642856,1706122377521,-1425.52,0.0005178,31]
[312642857,1706122377536,-500.0,0.0005178,31]
[312642858,1706122377549,-831.23,0.0005178,31]
[312642859,1706122377563,-642.97,0.0005178,31]
[312642860,1706122377577,-2093.79,0.0005178,31]
[312642861,1706122377592,-500.0,0.0005178,31]
[312642862,1706122377606,-500.0,0.0005178,31]
[312642863,1706122377620,-811.0,0.0005178,31]
[312642864,1706122377635,-500.0,0.0005178,31]
[312642865,1706122377649,-500.0,0.0005178,7]
[312642866,1706122377663,-545.73,0.0005178,31]
[312642867,1706122377677,-612.69,0.0005178,31]
[312642868,1706122377691,-574.43,0.0005178,31]
[312642869,1706122377705,-500.0,0.0005178,31]
[312642870,1706122377719,-514.67,0.0005178,31]
[312642871,1706122377734,-622.52,0.0005178,31]
[312642872,1706122377749,-712.58,0.0005178,31]
[312642873,1706122377762,-955.43,0.0005178,31]
[312642874,1706122377778,-500.0,0.0005178,31]
[312642875,1706122377792,-500.0,0.0005178,31]
[312642876,1706122377807,-745.16,0.0005178,31]
[312642877,1706122377822,-726.38,0.0005178,31]
[312642878,1706122377836,-798.08,0.0005178,31]
[312642879,1706122377851,-500.0,0.0005178,31]
[312642880,1706122377864,-626.62,0.0005178,31]
[312642881,1706122377880,-865.11,0.0005178,31]
[312642882,1706122377895,-500.0,0.0005178,31]
[312642883,1706122377909,-500.0,0.0005178,31]
[312642884,1706122377924,-705.93,0.0005178,31]
[312642885,1706122377939,-1862.33,0.0005178,31]
[312642886,1706122377953,-500.0,0.0005178,31]
[312642887,1706122377968,-500.0,0.0005178,31]
[312642888,1706122377983,-510.67,0.0005178,31]
[312642889,1706122377997,-668.54,0.0005178,31]
[312642890,1706122378011,-208.18116752,0.0005178,31]
[312642891,1706122378025,-856.57,0.0005178,31]
[312642892,1706122378040,-500.0,0.0005178,31]
[312642893,1706122378054,-500.0,0.0005178,31]
[312642894,1706122378070,-662.93,0.0005178,31]
[312642895,1706122378083,-500.0,0.0005178,31]
[312642896,1706122378098,-500.0,0.0005178,31]
[312642897,1706122378111,-664.98,0.0005178,31]
[312642898,1706122378127,-500.0,0.0005178,31]
[312642899,1706122378140,-553.0,0.0005178,31]
[312642900,1706122378153,-601.77,0.0005178,31]
[312642901,1706122378169,-500.0,0.0005178,31]
[312642902,1706122378182,-526.72,0.0005178,31]
[312642903,1706122378196,-614.5,0.0005178,31]
[312642904,1706122378210,-500.0,0.0005178,31]
[312642905,1706122378224,-620.25,0.0005178,31]
[312642906,1706122378238,-500.0,0.0005178,31]
[312642907,1706122378253,-812.44,0.0005178,31]
[312642908,1706122378267,-500.0,0.0005178,31]
[312642909,1706122378281,-500.0,0.0005178,31]
[312642910,1706122378295,-794.73,0.0005178,31]
[312642911,1706122378311,-500.0,0.0005178,31]
[312642912,1706122378327,-645.52,0.0005178,31]
[312642913,1706122378340,-500.0,0.0005178,31]
[312642914,1706122378356,-666.76,0.0005178,31]
[312642915,1706122378370,-705.9,0.0005178,31]
[312642916,1706122378385,-500.0,0.0005178,31]
[312642917,1706122378400,-1412.9,0.0005178,31]
[312642918,1706122378420,-764.01,0.0005178,31]
[312642919,1706122378434,-650.22,0.0005178,31]
[312642920,1706122378448,-500.0,0.0005178,31]
[312642921,1706122378463,-743.33,0.0005178,31]
[312642922,1706122378477,-632.51,0.0005178,31]
[312642923,1706122378491,-1250.48,0.0005178,31]
[312642924,1706122378506,-500.0,0.0005178,31]
[312642925,1706122378519,-500.0,0.0005178,31]
[312642926,1706122378534,-650.49,0.0005178,31]
[312642927,1706122378548,-733.9,0.0005178,31]
[312642928,1706122378562,-669.48,0.0005178,31]
[312642929,1706122378576,-500.0,0.0005178,31]
[312642930,1706122378591,-1269.11,0.0005178,2]
[312642931,1706122378606,-744.02,0.0005178,31]
[312642932,1706122378619,-533.98,0.0005178,31]
[312642933,1706122378634,-500.0,0.0005178,31]
[312642934,1706122378648,-664.9,0.0005178,31]
[312642935,1706122378662,-807.92,0.0005178,31]
[312642936,1706122378676,-500.0,0.0005178,31]
[312642937,1706122378691,-500.0,0.0005178,31]
[312642938,1706122379070,-553.89,0.0005178,31]
[312642939,1706122379089,-500.0,0.0005178,31]
[312642940,1706122379099,-678.22,0.0005178,31]
[312642941,1706122379109,-500.0,0.0005178,31]
[312642942,1706122379119,-868.79,0.0005178,31]
[312642943,1706122379130,-980.31,0.0005178,31]
[312642944,1706122379140,-540.29,0.0005178,31]
[312642945,1706122379150,-606.53,0.0005178,31]
[312642946,1706122379160,-590.42,0.0005178,31]
[312642947,1706122379170,-500.0,0.0005178,31]
[312642948,1706122379179,-500.0,0.0005178,31]
[312642949,1706122379189,-500.0,0.0005178,31]
[312642950,1706122379198,-1598.07,0.0005178,31]
[312642951,1706122379208,-526.85,0.0005178,31]
[312642952,1706122379219,-500.0,0.0005178,31]
[312642953,1706122379229,-1012.55,0.0005178,31]
[312642954,1706122379239,-822.56,0.0005178,31]
[312642955,1706122379249,-2206.82,0.0005178,7]
[312642956,1706122379259,-500.0,0.0005178,31]
[312642957,1706122379270,-650.91,0.0005178,31]
[312642958,1706122379280,-1000.0,0.0005178,7]
[312642959,1706122379290,-500.0,0.0005178,31]
[312642960,1706122379300,-731.16,0.0005178,31]
[312642961,1706122379315,-500.0,0.0005178,31]
[312642962,1706122379325,-500.0,0.0005178,31]
[312642963,1706122379334,-500.0,0.0005178,31]
[312642964,1706122379344,-552.33,0.0005178,31]
[312642965,1706122379355,-508.81,0.0005178,31]
[312642966,1706122379365,-813.7,0.0005178,31]
[312642967,1706122379375,-733.58,0.0005178,31]
[312642968,1706122379390,-500.0,0.0005178,31]
[312642969,1706122379400,-500.0,0.0005178,31]
[312642970,1706122379410,-509.4,0.0005178,31]
[312642971,1706122379420,-500.0,0.0005178,31]
[312642972,1706122379430,-656.53,0.0005178,31]
[312642973,1706122379440,-748.28,0.0005178,31]
[312642974,1706122379449,-500.0,0.0005178,31]
[312642975,1706122379459,-500.0,0.0005178,31]
[312642976,1706122379470,-737.23,0.0005178,31]
[312642977,1706122379479,-500.0,0.0005178,31]
[312642978,1706122379490,-500.0,0.0005178,31]
[312642979,1706122379500,-651.3,0.0005178,31]
[312642980,1706122379509,-500.0,0.0005178,31]
[312642981,1706122379519,-1130.82,0.0005178,7]
[312642982,1706122379529,-743.9,0.0005178,31]
[312642983,1706122379539,-695.86,0.0005178,31]
[312642984,1706122379550,-291.40837255,0.0005178,31]
[312642985,1706122379561,-524.48,0.0005178,31]
[312642986,1706122379571,-500.0,0.0005178,31]
[312642987,1706122379581,-577.96,0.0005178,31]
[312642988,1706122379591,-500.0,0.0005178,31]
[312642989,1706122379601,-500.0,0.0005178,31]
[312642990,1706122379612,-500.0,0.0005178,31]
[312642991,1706122379621,-822.67,0.0005178,31]
[312642992,1706122379634,-500.0,0.0005178,31]
[312642993,1706122379643,-500.0,0.0005178,31]
[312642994,1706122379654,-500.0,0.0005178,31]
[312642995,1706122379664,-539.38,0.0005178,31]
[312642996,1706122379674,-754.54,0.0005178,31]
[312642997,1706122379684,-748.39,0.0005178,31]
[312642998,1706122379694,-759.37,0.0005178,31]
[312642999,1706122379704,-596.17,0.0005178,31]
[312643000,1706122379715,-590.14,0.0005178,31]
[312643001,1706122379725,-500.0,0.0005178,31]
[312643002,1706122379738,-574.37,0.0005178,31]
[312643003,1706122379748,-836.66,0.0005178,31]
[312643004,1706122379758,-834.27,0.0005178,31]
[312643005,1706122379768,-1000.0,0.0005178,30]
[312643006,1706122379778,-500.0,0.0005178,31]
[312643007,1706122379789,-500.0,0.0005178,31]
[312643008,1706122379799,-500.0,0.0005178,31]
[312643009,1706122379809,-561.15,0.0005178,31]
[312643010,1706122379820,-571.13,0.0005178,31]
[312643011,1706122379831,-500.0,0.0005178,31]
[312643012,1706122379842,-2163.99,0.0005178,31]
[312643013,1706122379851,-722.96,0.0005178,31]
[312643014,1706122379861,-574.84,0.0005178,31]
[312643015,1706122379871,-500.0,0.0005178,31]
[312643016,1706122379883,-500.0,0.0005178,31]
[312643017,1706122379893,-500.0,0.0005178,31]
[312643018,1706122379903,-624.88,0.0005178,31]
[312643019,1706122379913,-500.0,0.0005178,31]
[312643020,1706122379922,-1020.09,0.0005178,31]
[312643021,1706122379931,-1074.38,0.0005178,31]
[312643022,1706122379941,-683.14,0.0005178,31]
[312643023,1706122379950,-500.0,0.0005178,31]